bitfinex/quotes_BTCUSD_20241222
["timestamp","ask_amount","ask_price","bid_price","bid_amount"]
[1734892656099,0.07693586,96192.0,96191.0,0.00264188]
[1734892656314,0.07693586,96192.0,96191.0,0.00064188]
[1734892656753,0.07693586,96192.0,96191.0,0.00364188]
[1734892657566,0.17824426,96192.0,96191.0,0.00364188]
[1734892658780,0.17824426,96192.0,96191.0,0.00064188]
[1734892659010,0.17824426,96192.0,96191.0,0.00264188]
[1734892659215,0.22504426,96192.0,96191.0,0.00064188]
[1734892659565,0.22604426,96192.0,96191.0,0.00064188]
[1734892659770,0.22504426,96192.0,96191.0,0.00064188]
[1734892660170,0.22904426,96192.0,96191.0,0.00064188]
[1734892660400,0.22504426,96192.0,96191.0,0.00064188]
[1734892661886,0.22704426,96192.0,96191.0,0.00064188]
[1734892662066,0.22504426,96192.0,96191.0,0.00064188]
[1734892662472,0.22704426,96192.0,96191.0,0.00064188]
[1734892663651,2.84204426,96192.0,96191.0,0.00064188]
[1734892669350,2.84204426,96192.0,96191.0,0.00072768]
[1734892669729,2.84221586,96192.0,96191.0,0.00072768]
[1734892671491,1.88621586,96192.0,96191.0,0.00072768]
[1734892671734,1.77821586,96192.0,96191.0,0.00072768]
[1734892672358,1.56721586,96192.0,96191.0,0.00072768]
[1734892672802,0.37721586,96192.0,96191.0,0.00072768]
[1734892673000,0.07910746,96192.0,96191.0,0.00072768]
[1734892674406,0.33041586,96192.0,96191.0,0.00072768]
[1734892674562,0.32841586,96192.0,96191.0,0.00072768]
[1734892674759,0.35341586,96192.0,96191.0,0.00072768]
[1734892675569,0.35141586,96192.0,96191.0,0.00072768]
[1734892675981,0.35341586,96192.0,96191.0,0.00072768]
[1734892677616,0.27448,96192.0,96191.0,0.00072768]
[1734892677833,0.35141586,96192.0,96191.0,0.00072768]
[1734892678018,0.35741586,96192.0,96191.0,0.00072768]
[1734892678276,0.35141586,96192.0,96191.0,0.00072768]
[1734892678617,0.35441586,96192.0,96191.0,0.00072768]
[1734892678927,0.35141586,96192.0,96191.0,0.00072768]
[1734892679271,0.35441586,96192.0,96191.0,0.00072768]
[1734892681146,0.0031716,96192.0,96191.0,0.00072768]
[1734892681293,0.08010746,96192.0,96191.0,0.00072768]
[1734892681904,0.18141586,96192.0,96191.0,0.00072768]
[1734892682111,0.17841586,96192.0,96191.0,0.00072768]
[1734892683829,0.07710746,96192.0,96191.0,0.00072768]
[1734892684596,0.08010746,96192.0,96191.0,0.00072768]
[1734892685447,0.07710746,96192.0,96191.0,0.00072768]
[1734892687162,0.32841586,96192.0,96191.0,0.00072768]
[1734892687305,0.35141586,96192.0,96191.0,0.00072768]
[1734892688343,0.36116446,96192.0,96191.0,0.00072768]
[1734892688569,0.36716446,96192.0,96191.0,0.00072768]
[1734892688775,0.36116446,96192.0,96191.0,0.00072768]
[1734892689234,0.23310746,96192.0,96191.0,0.00072768]
[1734892689413,0.07710746,96192.0,96191.0,0.00072768]
[1734892689822,0.08110746,96192.0,96191.0,0.00072768]
[1734892690037,0.0041716,96192.0,96191.0,0.00072768]
[1734892690452,0.0041716,96192.0,96191.0,0.00255402]
[1734892690676,0.08110746,96192.0,96191.0,0.00255402]
[1734892690894,0.08110746,96192.0,96191.0,0.00072768]
[1734892691309,0.07710746,96192.0,96191.0,0.00072768]
[1734892693075,0.07710746,96192.0,96191.0,0.25870022]
[1734892693076,6e-07,96192.0,96191.0,0.25870022]
[1734892693317,0.0001714,96234.0,96209.0,0.1]
[1734892693318,0.07693586,96233.0,96209.0,0.1]
[1734892693526,0.0001714,96234.0,96209.0,0.1]
[1734892693527,0.0001714,96234.0,96223.0,0.20785]
[1734892693707,0.0001714,96234.0,96223.0,0.5591584]
[1734892694035,0.07693586,96257.0,96228.0,0.25]
[1734892694228,0.07693586,96257.0,96238.0,0.207818]
[1734892694512,0.27199794,96251.0,96250.0,0.207792]
[1734892694903,0.2721608,96251.0,96250.0,0.20956562]
[1734892695696,0.00016286,96251.0,96250.0,0.20956562]
[1734892695908,0.17840712,96251.0,96250.0,0.00177362]
[1734892696197,0.17840712,96251.0,96250.0,0.00477362]
[1734892696198,0.56019712,96251.0,96250.0,0.00477362]
[1734892696396,0.56019712,96251.0,96250.0,0.003]
[1734892696576,0.207822,96236.0,96230.0,0.09140862]
[1734892697000,0.207822,96236.0,96231.0,0.00163813]
[1734892697338,0.207822,96236.0,96221.0,0.207852]
[1734892697764,0.207822,96236.0,96222.0,0.00164416]
[1734892698192,0.07693586,96237.0,96229.0,0.09140862]
[1734892698575,0.07693586,96237.0,96230.0,0.0016388]
[1734892698772,0.07693586,96231.0,96230.0,0.0016388]
[1734892698972,0.35124426,96231.0,96230.0,0.0016388]
[1734892699175,0.55907726,96231.0,96230.0,0.0016388]
[1734892699374,0.173,96230.0,96216.0,0.09140862]
[1734892699580,0.28479886,96217.0,96216.0,0.09140862]
[1734892700727,0.28479886,96217.0,96197.0,0.09140862]
[1734892700728,0.07693586,96199.0,96197.0,0.09140862]
[1734892700960,0.207904,96198.0,96197.0,0.09140862]
[1734892701170,0.28483986,96198.0,96197.0,0.09140862]
[1734892701340,0.28483986,96198.0,96197.0,0.09306954]
[1734892701779,0.38614826,96198.0,96197.0,0.00166092]
[1734892702190,0.38714826,96198.0,96197.0,0.003]
[1734892702322,0.207904,96198.0,96195.0,0.00054188]
[1734892702527,0.207892,96204.0,96195.0,0.00054188]
[1734892702528,0.07693586,96196.0,96195.0,0.00054188]
[1734892702746,0.07693586,96200.0,96195.0,0.00054188]
[1734892702952,0.07693586,96202.0,96195.0,0.00054188]
[1734892703121,0.07693586,96202.0,96195.0,0.20845188]
[1734892703362,0.207879,96210.0,96197.0,0.207906]
[1734892703557,0.07693586,96208.0,96196.0,0.00169296]
[1734892703753,0.207855,96221.0,96202.0,0.207894]
[1734892703754,0.07693586,96210.0,96202.0,0.207894]
[1734892704071,0.07693586,96210.0,96203.0,0.00168626]
[1734892704277,0.07693586,96210.0,96204.0,0.207891]
[1734892704507,0.001,96198.0,96196.0,0.207908]
[1734892704704,0.07693586,96213.0,96197.0,0.00103941]
[1734892704908,0.07693586,96213.0,96203.0,0.207891]
[1734892705690,0.001,96198.0,96197.0,0.09149422]
[1734892706071,0.20788,96209.0,96198.0,0.207904]
[1734892706269,0.20788,96209.0,96203.0,0.001]
[1734892706474,0.07693586,96211.0,96203.0,0.001]
[1734892706992,0.207878,96210.0,96203.0,0.001]
[1734892707198,0.07693586,96211.0,96203.0,0.001]
[1734892707545,0.07693586,96205.0,96203.0,0.001]
[1734892707746,0.07693586,96205.0,96197.0,8.56e-05]
[1734892707893,0.07693586,96202.0,96197.0,8.56e-05]
[1734892708099,0.001,96198.0,96197.0,0.0030856]
[1734892708299,0.07693586,96200.0,96197.0,8.56e-05]
[1734892708474,0.07693586,96198.0,96197.0,8.56e-05]
[1734892709253,0.07693586,96198.0,96197.0,0.0030856]
[1734892709436,0.07693586,96198.0,96197.0,8.56e-05]
[1734892710235,0.17824426,96198.0,96197.0,8.56e-05]
[1734892711081,0.17824426,96198.0,96197.0,0.0030856]
[1734892711504,0.17824426,96198.0,96197.0,8.56e-05]
[1734892711918,0.17924426,96198.0,96197.0,8.56e-05]
[1734892716904,0.40194426,96198.0,96197.0,8.56e-05]
[1734892717110,2.92304426,96198.0,96197.0,8.56e-05]
[1734892717292,3.02304426,96198.0,96197.0,8.56e-05]
[1734892718259,3.02204426,96198.0,96197.0,8.56e-05]
[1734892718688,3.03104426,96198.0,96197.0,8.56e-05]
[1734892718826,3.02204426,96198.0,96197.0,8.56e-05]
[1734892719413,2.98504426,96198.0,96197.0,8.56e-05]
[1734892719591,2.76804426,96198.0,96197.0,8.56e-05]
[1734892719825,2.70404426,96198.0,96197.0,8.56e-05]
[1734892720782,2.71304426,96198.0,96197.0,8.56e-05]
[1734892721390,2.72305335,96198.0,96197.0,8.56e-05]
[1734892727119,2.71405335,96198.0,96197.0,8.56e-05]
[1734892727349,2.71405335,96198.0,96191.0,2.8e-07]
[1734892727350,0.52753586,96192.0,96191.0,2.8e-07]
[1734892727551,0.62884426,96192.0,96191.0,2.8e-07]
[1734892728309,0.52753586,96188.0,96187.0,6.8e-07]
[1734892728514,0.62884426,96188.0,96187.0,6.8e-07]
[1734892729333,0.07693586,96172.0,96171.0,0.0001]
[1734892729527,3.00120426,96172.0,96171.0,0.0001]
[1734892729725,3.12530426,96172.0,96171.0,0.0001]
[1734892730961,3.1465302,96172.0,96171.0,0.0001]
[1734892731185,3.2465302,96172.0,96171.0,0.0001]
[1734892731352,3.2545302,96172.0,96171.0,0.0001]
[1734892731558,3.2465302,96172.0,96171.0,0.0001]
[1734892732108,0.28496486,96140.0,96134.0,8.57e-05]
[1734892732307,1.86427326,96140.0,96134.0,8.57e-05]
[1734892732523,1.86827326,96140.0,96134.0,8.57e-05]
[1734892732726,1.45927326,96140.0,96134.0,8.57e-05]
[1734892733518,1.45981559,96140.0,96134.0,8.57e-05]
[1734892734413,1.46181559,96140.0,96134.0,8.57e-05]
[1734892734819,1.45981559,96140.0,96134.0,8.57e-05]
[1734892735131,1.46481559,96140.0,96134.0,8.57e-05]
[1734892736066,1.46481559,96140.0,96139.0,0.0093407]
[1734892737849,1.47448081,96140.0,96139.0,0.0093407]
[1734892738211,1.09481559,96140.0,96139.0,0.0093407]
[1734892738550,1.07181559,96140.0,96139.0,0.0093407]
[1734892738772,0.29050719,96140.0,96139.0,0.0093407]
[1734892739397,0.28550719,96140.0,96139.0,0.0093407]
[1734892740741,0.29250719,96140.0,96139.0,0.0093407]
[1734892740946,0.28550719,96140.0,96139.0,0.0093407]
[1734892741309,0.39181559,96140.0,96139.0,0.0093407]
[1734892741518,0.07747819,96140.0,96139.0,0.0093407]
[1734892741730,0.00554233,96140.0,96139.0,0.01133081]
[1734892741937,0.00554233,96140.0,96139.0,0.01141651]
[1734892742134,0.00054233,96140.0,96139.0,0.01141651]
[1734892742342,0.00154233,96140.0,96139.0,0.01141651]
[1734892743369,0.50112375,96140.0,96139.0,0.01141651]
[1734892744587,0.50112375,96140.0,96139.0,0.04601651]
[1734892745326,0.50112375,96140.0,96139.0,0.04501651]
[1734892746121,0.50112375,96140.0,96139.0,0.2520584]
[1734892746319,0.50112375,96140.0,96139.0,0.25403019]
[1734892746557,0.50112375,96140.0,96139.0,0.35533859]
[1734892746915,0.07693586,96166.0,96151.0,0.208006]
[1734892747115,0.07693586,96160.0,96152.0,0.00196149]
[1734892747489,0.49292986,96155.0,96151.0,0.00046193]
[1734892747704,0.28493286,96155.0,96151.0,0.00046193]
[1734892747886,0.28493286,96155.0,96152.0,0.00196139]
[1734892748182,0.07693586,96155.0,96151.0,0.00046193]
[1734892748599,0.07793586,96155.0,96152.0,0.00196139]
[1734892749030,0.07793586,96155.0,96151.0,0.00046193]
[1734892749238,0.07693586,96155.0,96151.0,0.00046193]
[1734892749544,0.07693586,96155.0,96152.0,0.00196166]
[1734892749945,0.28493486,96155.0,96151.0,0.00246193]
[1734892750535,0.28493386,96155.0,96151.0,0.00246193]
[1734892750939,0.28493386,96155.0,96151.0,0.00046193]
[1734892751137,0.28493386,96155.0,96152.0,0.002]
[1734892751566,0.28493386,96155.0,96151.0,0.00046193]
[1734892751763,0.208,96154.0,96151.0,0.00046193]
[1734892751915,0.208,96154.0,96151.0,0.00246193]
[1734892752127,0.208,96154.0,96151.0,0.00046193]
[1734892752494,0.208,96154.0,96152.0,0.002]
[1734892752900,0.07693586,96152.0,96151.0,0.00046193]
[1734892753124,0.12393586,96152.0,96151.0,0.00046193]
[1734892753478,0.37524426,96152.0,96151.0,0.00046193]
[1734892754298,0.27393586,96152.0,96151.0,0.00346193]
[1734892754479,0.07693586,96152.0,96151.0,0.00046193]
[1734892754656,0.208017,96146.0,96139.0,0.00788833]
[1734892754859,0.208017,96146.0,96140.0,0.00196225]
[1734892755489,0.07693586,96151.0,96140.0,0.00196225]
[1734892755692,0.07693586,96151.0,96139.0,0.00805113]
[1734892756015,0.07693586,96140.0,96139.0,0.00805113]
[1734892756896,0.30074426,96140.0,96139.0,0.00805113]
[1734892757306,0.87874426,96140.0,96139.0,0.00805113]
[1734892757516,0.90174426,96140.0,96139.0,0.00805113]
[1734892758507,0.90574426,96140.0,96139.0,0.00805113]
[1734892759290,0.30474426,96140.0,96139.0,0.00805113]
[1734892759525,0.004,96140.0,96139.0,0.00805113]
[1734892760253,0.004,96140.0,96139.0,0.01002556]
[1734892760427,0.004,96140.0,96139.0,0.00805113]
[1734892760765,0.208029,96141.0,96139.0,0.00805113]
[1734892761182,0.001,96140.0,96139.0,0.00805113]
[1734892761430,0.208029,96141.0,96139.0,0.00805113]
[1734892761880,0.208029,96141.0,96139.0,0.00905113]
[1734892762666,0.208029,96141.0,96139.0,0.00805113]
[1734892763723,0.28496486,96141.0,96139.0,0.00805113]
[1734892763921,0.07693586,96145.0,96139.0,0.00805113]
[1734892764150,0.07693586,96143.0,96139.0,0.01005113]
[1734892764344,0.07693586,96140.0,96139.0,0.01005113]
[1734892764808,0.07693586,96140.0,96139.0,0.00805113]
[1734892765023,0.41605,96142.0,96139.0,0.00805113]
[1734892765227,0.41605,96142.0,96139.0,0.01105113]
[1734892765396,0.41605,96142.0,96139.0,0.00805113]
[1734892765603,0.07693586,96143.0,96139.0,0.00805113]
[1734892765835,0.07693586,96143.0,96139.0,0.01005113]
[1734892766363,0.208025,96142.0,96139.0,0.01005113]
[1734892767081,0.208025,96142.0,96139.0,0.00805113]
[1734892767463,0.208025,96142.0,96139.0,0.01105113]
[1734892768066,0.416051,96142.0,96139.0,0.01105113]
[1734892768451,0.208029,96140.0,96139.0,0.01105113]
[1734892768858,0.53627326,96140.0,96139.0,0.01105113]
[1734892770775,0.58307326,96140.0,96139.0,0.00805113]
[1734892770976,3.02507326,96140.0,96139.0,0.00805113]
[1734892771177,3.02507326,96140.0,96139.0,0.00905113]
[1734892771375,3.02507326,96140.0,96139.0,0.00805113]
[1734892771802,3.02707326,96140.0,96139.0,0.00805113]
[1734892772681,0.75707326,96140.0,96139.0,0.00805113]
[1734892773560,0.6801374,96140.0,96139.0,0.00805113]
[1734892773736,0.43696486,96140.0,96139.0,0.00805113]
[1734892774312,3.10777326,96140.0,96139.0,0.00805113]
[1734892774509,3.13077326,96140.0,96139.0,0.00805113]
[1734892775959,3.14035652,96140.0,96139.0,0.00805113]
[1734892776363,3.16087355,96140.0,96139.0,0.00805113]
[1734892777117,3.13787355,96140.0,96139.0,0.00805113]
[1734892777318,0.69587355,96140.0,96139.0,0.00805113]
[1734892778792,0.69604495,96140.0,96139.0,0.00805113]
[1734892779965,3.16104495,96140.0,96139.0,0.00805113]
[1734892781288,3.13804495,96140.0,96139.0,0.00805113]
[1734892781486,0.66594466,96140.0,96139.0,0.00805113]
[1734892782097,0.41463626,96140.0,96139.0,0.00805113]
[1734892782634,0.28713626,96140.0,96139.0,0.00805113]
[1734892783366,0.0021714,96140.0,96139.0,0.00805113]
[1734892786418,0.0001714,96140.0,96139.0,0.00805113]
[1734892787179,0.07710726,96140.0,96139.0,0.00805113]
[1734892789556,0.07710726,96140.0,96139.0,0.14295953]
[1734892789557,0.0001714,96140.0,96139.0,0.14295953]
[1734892789747,0.0001714,96140.0,96139.0,0.16900285]
[1734892789870,0.0001714,96140.0,96139.0,0.19114959]
[1734892790087,0.0001714,96146.0,96145.0,0.23108314]
[1734892790303,0.13966047,96178.0,96145.0,0.12633999]
[1734892790545,0.07693586,96182.0,96154.0,0.207999]
[1734892790897,0.07693586,96182.0,96154.0,0.3112673]
[1734892791770,0.07693586,96182.0,96154.0,0.65210813]
[1734892792093,0.07693586,96182.0,96169.0,0.207966]
[1734892792268,0.07693586,96182.0,96170.0,0.00194619]
[1734892793070,0.07693586,96182.0,96171.0,0.207962]
[1734892793272,0.07702051,96182.0,96171.0,0.207962]
[1734892793442,0.07702051,96182.0,96172.0,0.00194452]
[1734892793641,0.07902051,96182.0,96172.0,0.00194452]
[1734892793878,0.07902051,96182.0,96169.0,0.207966]
[1734892794101,0.07902051,96182.0,96173.0,0.00194368]
[1734892794309,0.00208465,96182.0,96173.0,0.207957]
[1734892794490,0.00208465,96182.0,96174.0,0.00194284]
[1734892794683,0.00208465,96182.0,96179.0,0.207943]
[1734892794894,8.465e-05,96182.0,96179.0,0.207943]
[1734892795101,8.465e-05,96182.0,96180.0,0.00189375]
[1734892795303,0.00208465,96182.0,96181.0,0.207941]
[1734892795510,8.465e-05,96182.0,96181.0,0.34474232]
[1734892796499,0.00108465,96182.0,96181.0,0.34774232]
[1734892797229,0.00098465,96182.0,96181.0,0.34774232]
[1734892797604,0.00098465,96182.0,96181.0,0.68730898]
[1734892797936,0.07693586,96210.0,96197.0,0.207906]
[1734892798132,0.00025608,96198.0,96197.0,0.21004966]
[1734892799520,0.00125608,96198.0,96197.0,0.21304966]
[1734892801110,0.00025608,96198.0,96197.0,0.21004966]
[1734892801447,0.00125608,96198.0,96197.0,0.21404966]
[1734892802974,0.00125608,96198.0,96197.0,0.32523504]
[1734892803169,0.00125608,96198.0,96197.0,0.37129918]
[1734892803370,0.00125608,96198.0,96197.0,0.47523504]
[1734892803673,0.04925608,96198.0,96197.0,0.00614366]
[1734892803875,0.12619194,96198.0,96197.0,0.00741893]
[1734892804025,0.12619194,96198.0,96197.0,0.004]
[1734892804264,0.07693586,96191.0,96183.0,0.09192947]
[1734892804648,0.207921,96190.0,96184.0,0.00276225]
[1734892805302,0.207921,96190.0,96180.0,0.207942]
[1734892805509,0.207921,96190.0,96185.0,0.00277113]
[1734892805926,0.207921,96190.0,96184.0,0.002]
[1734892806108,0.207921,96190.0,96186.0,0.00276979]
[1734892806517,0.415843,96190.0,96184.0,0.002]
[1734892806723,0.04825608,96198.0,96173.0,0.00103964]
[1734892806876,0.04825608,96198.0,96160.0,0.12473309]
[1734892806877,0.07693586,96197.0,96174.0,0.1013084]
[1734892807079,0.00025608,96198.0,96176.0,0.02306414]
[1734892807287,0.00025608,96198.0,96182.0,0.207937]
[1734892807608,0.00025608,96198.0,96184.0,0.207934]
[1734892807765,0.00025608,96198.0,96194.0,0.207911]
[1734892808230,0.00025608,96198.0,96196.0,0.207908]
[1734892808605,0.0001649,96198.0,96197.0,0.00343278]
[1734892808950,0.0001649,96198.0,96195.0,0.207909]
[1734892809374,0.0001649,96198.0,96196.0,0.00343446]
[1734892809787,0.0011649,96198.0,96196.0,0.00343446]
[1734892809950,0.0011649,96198.0,96197.0,0.207906]
[1734892810151,0.0011649,96198.0,96197.0,0.21133878]
[1734892811251,0.0001649,96198.0,96197.0,0.21133878]
[1734892811599,0.0011649,96198.0,96197.0,0.21133878]
[1734892811814,0.0001649,96198.0,96197.0,0.21133878]
[1734892812196,0.0479,96210.0,96202.0,0.207894]
[1734892812573,0.0479,96210.0,96203.0,0.00342273]
[1734892812775,0.20788,96209.0,96203.0,0.00342273]
[1734892813012,0.0479,96210.0,96197.0,0.004]
[1734892813215,0.207882,96208.0,96197.0,0.004]
[1734892813658,0.207885,96207.0,96198.0,0.0034311]
[1734892814001,0.207885,96207.0,96197.0,0.004]
[1734892814202,0.207885,96207.0,96199.0,0.00342943]
[1734892814434,0.207885,96207.0,96198.0,0.0034311]
[1734892814634,0.207885,96207.0,96197.0,0.004]
[1734892814937,0.207885,96207.0,96198.0,0.0034311]
[1734892815143,0.207885,96207.0,96203.0,0.003]
[1734892815813,0.0001714,96198.0,96191.0,0.415838]
[1734892815979,0.07693586,96196.0,96182.0,8.57e-05]
[1734892816180,0.07693586,96192.0,96182.0,8.57e-05]
[1734892816383,0.07693586,96192.0,96183.0,0.00276499]
[1734892816585,0.07693586,96192.0,96182.0,8.57e-05]
[1734892816785,0.207919,96191.0,96183.0,0.00276499]
[1734892816985,0.207929,96187.0,96182.0,8.57e-05]
[1734892817166,0.207929,96187.0,96183.0,0.00276499]
[1734892817364,0.207919,96191.0,96182.0,8.57e-05]
[1734892817769,0.207919,96191.0,96183.0,0.00276499]
[1734892817993,0.207919,96191.0,96182.0,8.57e-05]
[1734892818356,0.0788,96197.0,96182.0,8.57e-05]
[1734892818357,0.0788,96197.0,96184.0,0.00276365]
[1734892818574,0.207919,96192.0,96183.0,0.00276499]
[1734892818742,0.207919,96192.0,96182.0,8.57e-05]
[1734892819057,0.207919,96192.0,96183.0,0.003]
[1734892819247,0.207908,96196.0,96183.0,0.00278196]
[1734892819460,0.0788,96197.0,96188.0,0.207924]
[1734892819671,0.0788,96197.0,96184.0,0.207934]
[1734892819876,0.00022566,96198.0,96189.0,0.00277392]
[1734892820072,0.00022566,96198.0,96185.0,0.00103955]
[1734892820073,0.00022566,96198.0,96190.0,0.00103952]
[1734892820369,0.00022566,96198.0,96194.0,0.207912]
[1734892820614,0.00022566,96198.0,96195.0,0.0027698]
[1734892820961,0.00022566,96198.0,96186.0,0.207929]
[1734892821163,0.00022566,96198.0,96187.0,0.10408697]
[1734892821494,0.00022566,96198.0,96189.0,0.207923]
[1734892821666,0.00022566,96198.0,96189.0,0.415846]
[1734892821865,0.00022566,96198.0,96193.0,0.207914]
[1734892822069,0.00022566,96198.0,96195.0,0.003]
[1734892822242,0.00022566,96198.0,96193.0,0.207914]
[1734892823271,0.00022566,96198.0,96195.0,0.003]
[1734892824382,0.00022566,96198.0,96193.0,0.207914]
[1734892824864,0.00022566,96198.0,96193.0,0.210914]
[1734892824975,0.00022566,96198.0,96193.0,0.207914]
[1734892825176,0.00022566,96198.0,96193.0,0.415829]
[1734892825469,0.00022566,96198.0,96196.0,0.207908]
[1734892826021,0.00122566,96198.0,96196.0,0.207908]
[1734892826399,0.00022566,96198.0,96197.0,0.10234785]
[1734892826606,0.00022566,96198.0,96197.0,0.10234768]
[1734892826809,0.00022566,96198.0,96197.0,0.14841182]
[1734892827427,0.0478,96224.0,96220.0,0.207856]
[1734892827633,0.04785428,96224.0,96217.0,0.207862]
[1734892827838,0.04785428,96224.0,96210.0,0.207877]
[1734892828049,0.001,96198.0,96197.0,8.57e-05]
[1734892828258,0.0768,96204.0,96197.0,8.57e-05]
[1734892828844,0.254804,96198.0,96197.0,8.57e-05]
[1734892829248,0.255804,96198.0,96197.0,0.0040857]
[1734892829487,0.25351467,96198.0,96197.0,8.57e-05]
[1734892829870,0.0469,96198.0,96197.0,0.0030857]
[1734892831098,0.0469,96198.0,96197.0,8.57e-05]
[1734892831277,0.0768,96204.0,96197.0,8.57e-05]
[1734892831479,0.001,96198.0,96197.0,0.0040857]
[1734892831683,0.0768,96204.0,96197.0,8.57e-05]
[1734892831890,0.0469,96210.0,96203.0,0.207892]
[1734892832280,0.0768,96215.0,96203.0,0.415785]
[1734892832477,0.0768,96221.0,96205.0,0.207889]
[1734892832899,0.07693586,96216.0,96197.0,8.57e-05]
[1734892833303,0.28481186,96211.0,96197.0,8.57e-05]
[1734892833509,0.207887,96206.0,96197.0,8.57e-05]
[1734892833714,0.207887,96206.0,96199.0,0.09191026]
[1734892834305,0.207887,96206.0,96203.0,0.004]
[1734892834509,0.07693586,96208.0,96203.0,0.004]
[1734892834711,0.07693586,96208.0,96197.0,8.57e-05]
[1734892834897,0.07693586,96208.0,96199.0,0.002]
[1734892835093,0.07693586,96217.0,96201.0,0.207898]
[1734892835294,0.07693586,96215.0,96203.0,0.207893]
[1734892835798,0.07693586,96215.0,96203.0,0.209893]
[1734892836003,0.07693586,96215.0,96203.0,0.207893]
[1734892836342,0.07693586,96215.0,96204.0,0.00276269]
[1734892836718,0.0768,96221.0,96206.0,0.09191026]
[1734892836915,0.07693586,96219.0,96206.0,0.09191026]
[1734892837143,0.0768,96221.0,96206.0,0.0946718]
[1734892838009,0.0768,96221.0,96206.0,0.00276154]
[1734892838167,0.0768,96221.0,96206.0,0.00676154]
[1734892838595,0.0768,96221.0,96206.0,0.00276154]
[1734892838764,0.0768,96221.0,96206.0,0.00676154]
[1734892838969,0.0011714,96207.0,96206.0,0.00676154]
[1734892839153,0.0011714,96207.0,96206.0,0.34778084]
[1734892840653,0.0001714,96207.0,96206.0,0.34378084]
[1734892841084,0.0011714,96207.0,96206.0,0.34778084]
[1734892841290,0.0001714,96207.0,96206.0,0.34378084]
[1734892841696,0.0011714,96207.0,96206.0,0.34778084]
[1734892845092,0.0011714,96207.0,96206.0,0.53254336]
[1734892845290,0.0768,96221.0,96206.0,0.53254336]
[1734892845585,0.07693586,96220.0,96207.0,0.207885]
[1734892846118,0.07693586,96215.0,96208.0,0.00255652]
[1734892846250,0.207872,96213.0,96208.0,0.00255652]
[1734892846449,0.07693586,96207.0,96206.0,0.57600115]
[1734892846649,0.15473586,96207.0,96206.0,0.57600115]
[1734892846873,0.20243586,96207.0,96206.0,0.57600115]
[1734892847081,0.20243586,96207.0,96206.0,0.57200115]
[1734892847438,0.20243586,96207.0,96197.0,0.26813795]
[1734892847439,0.07693586,96201.0,96199.0,0.09240435]
[1734892847991,0.07693586,96202.0,96199.0,0.09240435]
[1734892848564,0.07693586,96202.0,96199.0,0.09640435]
[1734892848748,0.2079,96200.0,96199.0,0.004]
[1734892848942,0.2079,96200.0,96197.0,8.57e-05]
[1734892850300,0.2079,96200.0,96199.0,0.004]
[1734892850663,0.2079,96200.0,96197.0,8.57e-05]
[1734892851110,0.2079,96200.0,96197.0,0.0030857]
[1734892851748,0.07693586,96201.0,96197.0,0.0030857]
[1734892851957,0.07693586,96201.0,96197.0,8.57e-05]
[1734892852148,0.2079,96200.0,96199.0,0.003]
[1734892853915,0.2079,96200.0,96197.0,8.57e-05]
[1734892854113,0.57573586,96200.0,96199.0,8.57e-05]
[1734892854731,0.57573586,96200.0,96199.0,0.0030857]
[1734892854937,0.67704426,96200.0,96199.0,8.57e-05]
[1734892855477,0.67904426,96200.0,96199.0,8.57e-05]
[1734892855682,3.12104426,96200.0,96199.0,8.57e-05]
[1734892856084,3.13113861,96200.0,96199.0,8.57e-05]
[1734892856590,3.12232241,96200.0,96199.0,8.57e-05]
[1734892856851,3.12032241,96200.0,96199.0,8.57e-05]
[1734892857114,0.15993586,96200.0,96199.0,8.57e-05]
[1734892857286,0.085,96200.0,96199.0,8.57e-05]
[1734892857488,0.083,96200.0,96199.0,8.57e-05]
[1734892857689,0.087,96200.0,96199.0,8.57e-05]
[1734892858519,0.083,96200.0,96199.0,8.57e-05]
[1734892858874,0.085,96200.0,96199.0,8.57e-05]
[1734892859486,0.002,96200.0,96199.0,8.57e-05]
[1734892859928,0.002,96200.0,96199.0,0.00265627]
[1734892860127,0.207887,96207.0,96199.0,8.57e-05]
[1734892860460,0.207889,96205.0,96199.0,8.57e-05]
[1734892860605,0.003,96200.0,96199.0,8.57e-05]
[1734892861428,0.207889,96205.0,96199.0,8.57e-05]
[1734892861597,0.07693586,96206.0,96199.0,8.57e-05]
[1734892861739,0.07374689,96206.0,96200.0,0.00256847]
[1734892863289,0.083,96211.0,96201.0,0.207897]
[1734892863451,0.083,96211.0,96206.0,0.207886]
[1734892863781,0.07374689,96217.0,96207.0,0.00256119]
[1734892864367,0.07374689,96208.0,96207.0,0.00256119]
[1734892864736,0.207887,96206.0,96202.0,0.09240435]
[1734892864945,0.07374689,96207.0,96202.0,0.09240435]
[1734892865122,0.07374689,96207.0,96203.0,0.00256348]
[1734892866153,0.415774,96206.0,96199.0,8.57e-05]
[1734892866284,0.07374689,96207.0,96199.0,8.57e-05]
[1734892866488,0.07374689,96207.0,96200.0,0.00256521]
[1734892867015,0.07374689,96201.0,96200.0,0.00256521]
[1734892867191,0.15504689,96201.0,96200.0,0.00256521]
[1734892868744,0.15504689,96201.0,96199.0,8.57e-05]
[1734892869390,0.15704689,96201.0,96199.0,8.57e-05]
[1734892870388,0.002,96201.0,96199.0,8.57e-05]
[1734892870721,0.002,96201.0,96200.0,0.00256845]
[1734892870837,0.002,96201.0,96200.0,0.00360778]
[1734892871043,0.0001714,96208.0,96200.0,0.00256845]
[1734892871289,0.0001714,96208.0,96199.0,8.57e-05]
[1734892871290,0.0813,96201.0,96199.0,8.57e-05]
[1734892871908,0.0833,96201.0,96200.0,0.34109442]
[1734892872103,0.07871082,96201.0,96200.0,0.34109442]
[1734892872295,0.07871082,96201.0,96200.0,0.34355539]
[1734892872948,0.07871082,96201.0,96200.0,0.00246097]
[1734892873338,0.07871082,96201.0,96199.0,8.57e-05]
[1734892874098,0.15245771,96201.0,96200.0,0.002]
[1734892874504,0.2079,96200.0,96199.0,8.57e-05]
[1734892874771,0.15245771,96201.0,96199.0,0.0040857]
[1734892875171,0.15245771,96201.0,96199.0,8.57e-05]
[1734892875383,0.15245771,96201.0,96200.0,0.001]
[1734892875841,0.15245771,96201.0,96199.0,8.57e-05]
[1734892875999,0.15445771,96201.0,96199.0,8.57e-05]
[1734892877489,0.2079,96200.0,96199.0,8.57e-05]
[1734892877699,2.59655529,96200.0,96199.0,8.57e-05]
[1734892877907,2.74655529,96200.0,96199.0,8.57e-05]
[1734892878116,0.56155089,96198.0,96197.0,8.57e-05]
[1734892878337,0.56157289,96188.0,96187.0,0.09245467]
[1734892878545,3.10488129,96188.0,96187.0,0.09245467]
[1734892878746,3.12788129,96188.0,96187.0,0.09472485]
[1734892878925,3.12788129,96188.0,96187.0,0.09245467]
[1734892879515,3.12788129,96188.0,96182.0,8.57e-05]
[1734892879516,0.439236,96183.0,96182.0,8.57e-05]
[1734892879734,2.9825444,96183.0,96182.0,0.00017038]
[1734892880315,0.61429129,96183.0,96182.0,0.00017038]
[1734892880572,0.89261256,96183.0,96182.0,0.00017038]